[Event "EYTCC U12 Open 2019"]
[Site "Pardubice"]
[Date "2019.07.13"]
[Round "3.22"]
[White "Skrbec, Leon"]
[Black "Costa, Leonardo"]
[Result "1-0"]
[ECO "D71"]
[WhiteElo "1896"]
[BlackElo "2002"]
[Annotator "NA"]
[PlyCount "89"]
[EventDate "2019.07.11"]
[EventType "swiss"]
[EventCountry "CZE"]
[SourceTitle "playchess.com"]
[Source "ChessBase"]
[SourceQuality "1"]
[WhiteTeam "Slovenia"]
[BlackTeam "Germany"]
[WhiteTeamCountry "SLO"]
[BlackTeamCountry "GER"]
[TimeControl "40/5400+30:1800+30"]

1. d4 {[%emt 0:00:00]} Nf6 {[%emt 0:00:00]} 2. c4 {[%emt 0:00:00]} g6 {[%emt 0:00:00]} 3. g3 {[%emt 0:00:00]} Bg7 {[%emt 0:00:18]} 4. Nf3 {[%emt 0:00:00]} O-O {[%emt 0:00:12]} 5. Bg2 {[%emt 0:00:11]} d6 {[%emt 0:00:18]} 6. O-O {[%emt 0:00:17]} c6 {[%emt 0:00:35]} 7. Nc3 {[%emt 0:00:16]} Qb6 {[%emt 0:00:30]} 8. b3 {[%emt 0:00:38]} e5 {[%emt 0:02:02]} 9. Ba3 {[%emt 0:01:54]} Rd8 {[%emt 0:09:05]} 10. Qc2 {[%emt 0:04:21]} exd4 {[%emt 0:08:44]} 11. Na4 {[%emt 0:00:15]} Qc7 {[%emt 0:01:27]} 12. Nxd4 {[%emt 0:00:18]} Nbd7 {[%emt 0:02:56]} 13. Rfd1 {[%emt 0:04:27]} Nf8 {[%emt 0:07:18]} 14. Rac1 {[%emt 0:02:56]} Ne6 {[%emt 0:05:33]} 15. Bb2 {[%emt 0:05:45]} Nxd4 {[%emt 0:01:51]} 16. Bxd4 {[%emt 0:00:07]} Qe7 {[%emt 0:03:00]} 17. Nc3 {[%emt 0:09:01]} Be6 {[%emt 0:07:10]} 18. e4 {[%emt 0:03:58]} Ng4 {[%emt 0:09:46]} 19. Bxg7 {[%emt 0:01:48]} Kxg7 {[%emt 0:00:07]} 20. h3 {[%emt 0:00:19]} Nf6 {[%emt 0:00:46]} 21. Re1 {[%emt 0:03:26]} Qf8 {[%emt 0:07:40]} 22. f4 {[%emt 0:04:16]} Kg8 {[%emt 0:06:28]} 23. Qb2 {[%emt 0:05:24]} Qg7 {[%emt 0:01:59]} 24. Rcd1 {[%emt 0:04:43]} Ne8 {[%emt 0:04:57]} 25. Qc2 {[%emt 0:00:49]} Rac8 {[%emt 0:02:32]} 26. Ne2 {[%emt 0:01:05]} Rc7 {[%emt 0:06:04]} 27. Nd4 {[%emt 0:02:18]} Bc8 {[%emt 0:01:04]} 28. Nf3 {[%emt 0:02:04]} Rcd7 {[%emt 0:01:59]} 29. h4 {[%emt 0:01:36]} Qf8 {[%emt 0:02:47]} 30. Qf2 {[%emt 0:04:00]} a6 {[%emt 0:01:19]} 31. Rd2 {[%emt 0:01:44]} Ng7 {[%emt 0:01:34]} 32. Bh3 {[%emt 0:00:52]} Rc7 {[%emt 0:00:25]} 33. Bxc8 {[%emt 0:01:02]} Rcxc8 {[%emt 0:00:36]} 34. Red1 {[%emt 0:00:13]} Qe7 {[%emt 0:00:42]} 35. Qe1 {[%emt 0:03:32]} Kf8 {[%emt 0:03:03]} 36. e5 {[%emt 0:01:36]} dxe5 {[%emt 0:00:35]} 37. Nxe5 {[%emt 0:00:47]} f6 {[%emt 0:01:17]} 38. Nd7+ {[%emt 0:01:43]} Kf7 {[%emt 0:00:31]} 39. Qf2 {[%emt 0:02:26]} Ne6 {[%emt 0:00:38]} 40. f5 {[%emt 0:02:24]} Nf8 {[%emt 0:01:12]} 41. Re1 {[%emt 0:31:45]} Qb4 {[%emt 0:12:34]} 42. fxg6+ {[%emt 0:00:00]} Nxg6 {[%emt 0:00:23]} 43. h5 {[%emt 0:00:00]} Qc3 {[%emt 0:07:12]} 44. hxg6+ {[%emt 0:00:00]} hxg6 {[%emt 0:00:06]} 45. Rc2 {[%emt 0:00:00]} 1-0

[Event "EYTCC U12 Open 2019"]
[Site "Pardubice"]
[Date "2019.07.13"]
[Round "3.23"]
[White "Deuer, Marius"]
[Black "Gregoric, Andraz"]
[Result "1-0"]
[ECO "C88"]
[WhiteElo "1881"]
[BlackElo "1911"]
[Annotator "NA"]
[PlyCount "61"]
[EventDate "2019.07.11"]
[EventType "swiss"]
[EventCountry "CZE"]
[SourceTitle "playchess.com"]
[Source "ChessBase"]
[SourceQuality "1"]
[WhiteTeam "Germany"]
[BlackTeam "Slovenia"]
[WhiteTeamCountry "GER"]
[BlackTeamCountry "SLO"]
[TimeControl "40/5400+30:1800+30"]

1. e4 {[%emt 0:00:00]} e5 {[%emt 0:00:00]} 2. Nf3 {[%emt 0:00:00]} Nc6 {[%emt 0:00:00]} 3. Bb5 {[%emt 0:00:00]} a6 {[%emt 0:00:00]} 4. Ba4 {[%emt 0:00:00]} Nf6 {[%emt 0:00:07]} 5. O-O {[%emt 0:00:04]} Be7 {[%emt 0:01:10]} 6. Re1 {[%emt 0:00:09]} b5 {[%emt 0:00:09]} 7. Bb3 {[%emt 0:00:04]} O-O {[%emt 0:00:13]} 8. a4 {[%emt 0:00:46]} b4 {[%emt 0:00:26]} 9. d3 {[%emt 0:03:04]} d6 {[%emt 0:02:08]} 10. Nbd2 {[%emt 0:02:08]} Na5 {[%emt 0:01:42]} 11. Ba2 {[%emt 0:02:04]} c5 {[%emt 0:00:11]} 12. Nc4 {[%emt 0:07:10]} h6 {[%emt 0:05:43]} 13. Ne3 {[%emt 0:05:07]} Be6 {[%emt 0:01:49]} 14. Nf5 {[%emt 0:10:01]} Bxf5 {[%emt 0:09:37]} 15. exf5 {[%emt 0:00:06]} Qd7 {[%emt 0:01:20]} 16. Nh4 {[%emt 0:02:53]} b3 {[%emt 0:00:28]} 17. cxb3 {[%emt 0:04:18]} Nc6 {[%emt 0:12:51]} 18. Bd2 {[%emt 0:10:26]} Rab8 {[%emt 0:11:28]} 19. b4 {[%emt 0:03:41]} Nxb4 {[%emt 0:00:10]} 20. Bxb4 {[%emt 0:05:15]} Rxb4 {[%emt 0:00:43]} 21. Ng6 {[%emt 0:01:58]} Re8 {[%emt 0:03:58]} 22. Qf3 {[%emt 0:08:28]} Nh7 {[%emt 0:08:40]} 23. Bxf7+ {[%emt 0:06:40]} Kxf7 {[%emt 0:01:11]} 24. Qd5+ {[%emt 0:00:07]} Kf6 {[%emt 0:00:10]} 25. Nxe5 {[%emt 0:00:59]} Qxf5 {[%emt 0:01:28]} 26. Qf7+ {[%emt 0:00:25]} Kg5 {[%emt 0:00:07]} 27. Nf3+ {[%emt 0:01:02]} Qxf3 {[%emt 0:00:31]} 28. gxf3 {[%emt 0:00:37]} Rf8 {[%emt 0:00:56]} 29. Qxe7+ {[%emt 0:00:35]} Rf6 {[%emt 0:00:06]} 30. Qxg7+ {[%emt 0:00:10]} Rg6 {[%emt 0:00:04]} 31. Qxh7 {[%emt 0:00:16]} 1-0

[Event "EYTCC U12 Open 2019"]
[Site "Pardubice"]
[Date "2019.07.13"]
[Round "3.24"]
[White "Olenik Campa, Rudi"]
[Black "Hagner, Bennet"]
[Result "0-1"]
[ECO "C90"]
[WhiteElo "1854"]
[BlackElo "1831"]
[Annotator "NA"]
[PlyCount "116"]
[EventDate "2019.07.11"]
[EventType "swiss"]
[EventCountry "CZE"]
[SourceTitle "playchess.com"]
[Source "ChessBase"]
[SourceQuality "1"]
[WhiteTeam "Slovenia"]
[BlackTeam "Germany"]
[WhiteTeamCountry "SLO"]
[BlackTeamCountry "GER"]
[TimeControl "40/5400+30:1800+30"]

1. e4 {[%emt 0:00:00]} e5 {[%emt 0:00:00]} 2. Nf3 {[%emt 0:00:00]} Nc6 {[%emt 0:00:00]} 3. Bb5 {[%emt 0:00:00]} a6 {[%emt 0:00:00]} 4. Ba4 {[%emt 0:00:00]} Nf6 {[%emt 0:00:00]} 5. d3 {[%emt 0:00:47]} b5 {[%emt 0:01:30]} 6. Bb3 {[%emt 0:00:06]} Be7 {[%emt 0:00:18]} 7. O-O {[%emt 0:00:06]} d6 {[%emt 0:00:10]} 8. c3 {[%emt 0:00:05]} O-O {[%emt 0:00:21]} 9. Re1 {[%emt 0:00:16]} Re8 {[%emt 0:01:51]} 10. Nbd2 {[%emt 0:00:14]} Bf8 {[%emt 0:00:23]} 11. Nf1 {[%emt 0:01:42]} Na5 {[%emt 0:08:06]} 12. Bc2 {[%emt 0:00:17]} c5 {[%emt 0:00:29]} 13. d4 {[%emt 0:01:36]} exd4 {[%emt 0:02:37]} 14. cxd4 {[%emt 0:00:13]} Bg4 {[%emt 0:09:25]} 15. d5 {[%emt 0:04:10]} g6 {[%emt 0:00:54]} 16. h3 {[%emt 0:03:31]} Bxf3 {[%emt 0:03:32]} 17. gxf3 {[%emt 0:00:08]} Bg7 {[%emt 0:01:17]} 18. Ng3 {[%emt 0:03:37]} Nd7 {[%emt 0:02:42]} 19. f4 {[%emt 0:04:58]} Nc4 {[%emt 0:03:52]} 20. Rb1 {[%emt 0:00:58]} Qa5 {[%emt 0:03:55]} 21. Bb3 {[%emt 0:03:55]} Ndb6 {[%emt 0:00:22]} 22. f5 {[%emt 0:03:36]} Ne5 {[%emt 0:03:37]} 23. Bd2 {[%emt 0:03:32]} Qxd2 {[%emt 0:00:23]} 24. fxg6 {[%emt 0:03:17]} Qxe1+ {[%emt 0:00:22]} 25. Qxe1 {[%emt 0:00:21]} Nf3+ {[%emt 0:00:06]} 26. Kh1 {[%emt 0:00:22]} Nxe1 {[%emt 0:00:07]} 27. gxf7+ {[%emt 0:00:25]} Kxf7 {[%emt 0:00:09]} 28. Rxe1 {[%emt 0:00:10]} Bxb2 {[%emt 0:00:12]} 29. Nf5 {[%emt 0:00:11]} Rad8 {[%emt 0:00:28]} 30. Bd1 {[%emt 0:00:47]} Kf6 {[%emt 0:00:13]} 31. Ne3 {[%emt 0:00:59]} Bd4 {[%emt 0:00:51]} 32. Ng4+ {[%emt 0:00:08]} Kg5 {[%emt 0:00:16]} 33. f3 {[%emt 0:00:16]} Nxd5 {[%emt 0:00:15]} 34. Kg2 {[%emt 0:00:26]} Bc3 {[%emt 0:00:27]} 35. Rg1 {[%emt 0:00:50]} Nf4+ {[%emt 0:00:28]} 36. Kg3 {[%emt 0:00:10]} Bd4 {[%emt 0:00:46]} 37. h4+ {[%emt 0:00:10]} Kg6 {[%emt 0:00:14]} 38. Rh1 {[%emt 0:00:23]} Nh5+ {[%emt 0:00:35]} 39. Kg2 {[%emt 0:00:08]} d5 {[%emt 0:00:16]} 40. exd5 {[%emt 0:00:07]} Nf4+ {[%emt 0:00:25]} 41. Kg3 {[%emt 0:30:07]} Nxd5 {[%emt 0:30:10]} 42. Bc2+ {[%emt 0:00:07]} Kg7 {[%emt 0:00:15]} 43. h5 {[%emt 0:00:08]} Ne3 {[%emt 0:00:14]} 44. h6+ {[%emt 0:00:08]} Kh8 {[%emt 0:00:09]} 45. Be4 {[%emt 0:00:12]} Nxg4 {[%emt 0:00:16]} 46. Kxg4 {[%emt 0:00:05]} Rg8+ {[%emt 0:00:35]} 47. Kh5 {[%emt 0:00:09]} Rg1 {[%emt 0:00:27]} 48. Rh3 {[%emt 0:00:08]} Rdg8 {[%emt 0:00:16]} 49. f4 {[%emt 0:00:42]} R1g4 {[%emt 0:00:34]} 50. Bd5 {[%emt 0:00:20]} R8g6 {[%emt 0:00:16]} 51. Bf7 {[%emt 0:00:20]} Rg1 {[%emt 0:00:16]} 52. Rh2 {[%emt 0:00:18]} Bf2 {[%emt 0:00:15]} 53. Be6 {[%emt 0:00:38]} c4 {[%emt 0:00:29]} 54. Bh3 {[%emt 0:00:23]} Bg3 {[%emt 0:00:22]} 55. Re2 {[%emt 0:00:12]} Bxf4 {[%emt 0:00:14]} 56. Re8+ {[%emt 0:01:11]} Rg8 {[%emt 0:00:24]} 57. Rf8 {[%emt 0:00:23]} R1g5+ {[%emt 0:00:14]} 58. Kh4 {[%emt 0:00:08]} Bg3# 0-1

[Event "EYTCC U12 Open 2019"]
[Site "Pardubice"]
[Date "2019.07.14"]
[Round "4.1"]
[White "Tancsa, Tamas"]
[Black "Fiszer, Bartosz"]
[Result "1/2-1/2"]
[ECO "B32"]
[WhiteElo "2126"]
[BlackElo "2124"]
[Annotator "NA"]
[PlyCount "94"]
[EventDate "2019.07.11"]
[EventType "swiss"]
[EventCountry "CZE"]
[SourceTitle "playchess.com"]
[Source "ChessBase"]
[SourceQuality "1"]
[WhiteTeam "Hungary"]
[BlackTeam "Poland"]
[WhiteTeamCountry "HUN"]
[BlackTeamCountry "POL"]
[TimeControl "40/5400+30:1800+30"]

1. e4 {[%emt 0:00:00]} c5 {[%emt 0:00:00]} 2. Nf3 {[%emt 0:00:01]} Nc6 {[%emt 0:00:00]} 3. d4 {[%emt 0:00:06]} cxd4 {[%emt 0:00:00]} 4. Nxd4 {[%emt 0:00:07]} e5 {[%emt 0:00:00]} 5. Nb5 {[%emt 0:00:06]} d6 {[%emt 0:00:03]} 6. c4 {[%emt 0:00:03]} Be7 {[%emt 0:00:11]} 7. N1c3 {[%emt 0:00:51]} a6 {[%emt 0:00:10]} 8. Na3 {[%emt 0:00:05]} Be6 {[%emt 0:00:28]} 9. Be3 {[%emt 0:00:35]} Bg5 {[%emt 0:01:38]} 10. Bxg5 {[%emt 0:01:40]} Qxg5 {[%emt 0:00:06]} 11. Nd5 {[%emt 0:00:57]} Qd8 {[%emt 0:02:25]} 12. b4 {[%emt 0:08:50]} Nf6 {[%emt 0:05:41]} 13. Bd3 {[%emt 0:00:24]} O-O {[%emt 0:01:23]} 14. Nc2 {[%emt 0:00:29]} Bxd5 {[%emt 0:14:43]} 15. cxd5 {[%emt 0:00:38]} Ne7 {[%emt 0:00:51]} 16. O-O {[%emt 0:00:20]} Nd7 {[%emt 0:01:19]} 17. Ne3 {[%emt 0:00:40]} Rc8 {[%emt 0:01:09]} 18. Qd2 {[%emt 0:07:16]} g6 {[%emt 0:07:48]} 19. Rac1 {[%emt 0:10:31]} Kh8 {[%emt 0:05:57]} 20. Rxc8 {[%emt 0:07:04]} Qxc8 {[%emt 0:00:03]} 21. Nc4 {[%emt 0:01:03]} Qb8 {[%emt 0:01:36]} 22. f4 {[%emt 0:02:47]} b5 {[%emt 0:00:26]} 23. Na5 {[%emt 0:00:50]} exf4 {[%emt 0:03:16]} 24. Qxf4 {[%emt 0:00:26]} Kg8 {[%emt 0:00:56]} 25. Qh4 {[%emt 0:01:39]} Qa7+ {[%emt 0:05:09]} 26. Kh1 {[%emt 0:04:51]} Ne5 {[%emt 0:00:03]} 27. Be2 {[%emt 0:00:41]} Rc8 {[%emt 0:08:18]} 28. Qf6 {[%emt 0:03:09]} Qd7 {[%emt 0:14:58]} 29. h3 {[%emt 0:01:05]} h5 {[%emt 0:01:04]} 30. Qg5 {[%emt 0:01:26]} Kf8 {[%emt 0:01:50]} 31. Nb3 {[%emt 0:04:05]} Ke8 {[%emt 0:02:06]} 32. Nc5 {[%emt 0:02:35]} Qc7 {[%emt 0:04:40]} 33. Qf6 {[%emt 0:00:39]} Ng8 34. Qg7 {[%emt 0:15:07]} dxc5 {[%emt 0:01:23]} 35. bxc5 {[%emt 0:01:26]} Kd7 {[%emt 0:04:57]} 36. Rxf7+ {[%emt 0:03:38]} Nxf7 {[%emt 0:00:02]} 37. Qxf7+ {[%emt 0:00:08]} Ne7 {[%emt 0:00:05]} 38. c6+ {[%emt 0:00:20]} Kd6 {[%emt 0:00:10]} 39. Qf4+ {[%emt 0:01:12]} Kc5 {[%emt 0:00:16]} 40. Qe3+ {[%emt 0:00:23]} Kd6 {[%emt 0:00:37]} 41. Qg3+ {[%emt 0:36:13]} Kc5 {[%emt 0:30:52]} 42. Qc3+ {[%emt 0:00:15]} Kd6 {[%emt 0:00:40]} 43. Qg3+ {[%emt 0:09:36]} Kc5 {[%emt 0:01:26]} 44. Qe3+ {[%emt 0:00:57]} Kb4 {[%emt 0:01:53]} 45. a3+ {[%emt 0:00:10]} Ka5 {[%emt 0:00:10]} 46. Qc3+ {[%emt 0:00:15]} Kb6 {[%emt 0:00:10]} 47. Qd4+ {[%emt 0:00:30]} Ka5 {[%emt 0:00:05]} 1/2-1/2

[Event "EYTCC U12 Open 2019"]
[Site "Pardubice"]
[Date "2019.07.14"]
[Round "4.2"]
[White "Seemann, Jakub"]
[Black "Tran, David"]
[Result "0-1"]
[ECO "C85"]
[WhiteElo "2017"]
[BlackElo "2112"]
[Annotator "NA"]
[PlyCount "84"]
[EventDate "2019.07.11"]
[EventType "swiss"]
[EventCountry "CZE"]
[SourceTitle "playchess.com"]
[Source "ChessBase"]
[SourceQuality "1"]
[WhiteTeam "Poland"]
[BlackTeam "Hungary"]
[WhiteTeamCountry "POL"]
[BlackTeamCountry "HUN"]
[TimeControl "40/5400+30:1800+30"]

1. e4 {[%emt 0:00:00]} e5 {[%emt 0:00:00]} 2. Nf3 {[%emt 0:00:00]} Nc6 {[%emt 0:00:00]} 3. Bb5 {[%emt 0:00:00]} a6 {[%emt 0:00:00]} 4. Ba4 {[%emt 0:00:00]} Nf6 {[%emt 0:00:08]} 5. O-O {[%emt 0:00:01]} Be7 {[%emt 0:00:52]} 6. Bxc6 {[%emt 0:00:05]} dxc6 {[%emt 0:00:22]} 7. d3 {[%emt 0:00:04]} Nd7 {[%emt 0:00:46]} 8. Nbd2 {[%emt 0:00:12]} O-O {[%emt 0:00:46]} 9. Nc4 {[%emt 0:00:04]} f6 {[%emt 0:00:17]} 10. Nh4 {[%emt 0:00:06]} Nc5 {[%emt 0:00:40]} 11. Nf5 {[%emt 0:00:13]} Bxf5 {[%emt 0:00:06]} 12. exf5 {[%emt 0:00:05]} Qd5 {[%emt 0:06:07]} 13. Qg4 {[%emt 0:00:19]} Rfe8 {[%emt 0:06:08]} 14. Re1 {[%emt 0:00:42]} e4 {[%emt 0:09:32]} 15. b4 {[%emt 0:00:52]} Nd7 {[%emt 0:03:42]} 16. Rxe4 {[%emt 0:17:37]} Bxb4 {[%emt 0:01:43]} 17. Bh6 {[%emt 0:00:20]} Qf7 {[%emt 0:05:58]} 18. Re3 {[%emt 0:15:31]} Rxe3 {[%emt 0:05:41]} 19. Nxe3 {[%emt 0:01:05]} Bc3 {[%emt 0:03:36]} 20. Rb1 {[%emt 0:00:28]} Ne5 {[%emt 0:00:21]} 21. Qg3 {[%emt 0:01:03]} Kh8 {[%emt 0:11:52]} 22. Bf4 {[%emt 0:03:30]} b5 {[%emt 0:05:21]} 23. Rb3 {[%emt 0:05:34]} b4 {[%emt 0:08:49]} 24. Nd1 {[%emt 0:01:27]} Bd4 {[%emt 0:00:52]} 25. Be3 {[%emt 0:03:20]} c5 {[%emt 0:06:57]} 26. Bxd4 {[%emt 0:05:32]} cxd4 {[%emt 0:00:06]} 27. f4 {[%emt 0:03:10]} Nc6 {[%emt 0:02:47]} 28. Qf3 {[%emt 0:01:21]} Qd7 {[%emt 0:00:49]} 29. Rxb4 {[%emt 0:02:58]} Re8 {[%emt 0:00:09]} 30. Rb1 {[%emt 0:00:27]} Ne7 {[%emt 0:02:33]} 31. Nf2 {[%emt 0:06:36]} Nxf5 {[%emt 0:01:07]} 32. Ne4 {[%emt 0:00:26]} Ne3 {[%emt 0:02:06]} 33. Qh5 {[%emt 0:06:34]} f5 {[%emt 0:05:37]} 34. Ng5 {[%emt 0:03:39]} g6 {[%emt 0:00:06]} 35. Qe2 {[%emt 0:01:42]} Nd5 {[%emt 0:03:22]} 36. Qf2 {[%emt 0:00:53]} c5 {[%emt 0:01:06]} 37. Qh4 {[%emt 0:05:36]} Qe7 {[%emt 0:02:29]} 38. h3 {[%emt 0:02:54]} h5 {[%emt 0:00:14]} 39. Qg3 {[%emt 0:08:38]} Nc3 {[%emt 0:00:30]} 40. Qf3 {[%emt 0:05:40]} Nxb1 {[%emt 0:00:22]} 41. Qc6 {[%emt 0:30:04]} Qe3+ {[%emt 0:30:39]} 42. Kh1 {[%emt 0:00:14]} Qc1+ {[%emt 0:00:06]} 0-1

[Event "EYTCC U12 Open 2019"]
[Site "Pardubice"]
[Date "2019.07.14"]
[Round "4.3"]
[White "Gaal, Zsoka"]
[Black "Meers, Hubert"]
[Result "1-0"]
[ECO "A49"]
[WhiteElo "2047"]
[BlackElo "2141"]
[Annotator "NA"]
[PlyCount "73"]
[EventDate "2019.07.11"]
[EventType "swiss"]
[EventCountry "CZE"]
[SourceTitle "playchess.com"]
[Source "ChessBase"]
[SourceQuality "1"]
[WhiteTeam "Hungary"]
[BlackTeam "Poland"]
[WhiteTeamCountry "HUN"]
[BlackTeamCountry "POL"]
[TimeControl "40/5400+30:1800+30"]

1. d4 {[%emt 0:00:00]} Nf6 {[%emt 0:00:00]} 2. Nf3 {[%emt 0:00:00]} g6 {[%emt 0:00:00]} 3. g3 {[%emt 0:00:00]} Bg7 {[%emt 0:00:00]} 4. Bg2 {[%emt 0:00:00]} O-O {[%emt 0:00:00]} 5. O-O {[%emt 0:00:02]} d6 {[%emt 0:00:02]} 6. b3 {[%emt 0:00:06]} b5 {[%emt 0:01:17]} 7. Bb2 {[%emt 0:04:10]} Bb7 {[%emt 0:03:00]} 8. c4 {[%emt 0:01:50]} bxc4 {[%emt 0:02:06]} 9. bxc4 {[%emt 0:00:55]} Nbd7 {[%emt 0:02:48]} 10. Nbd2 {[%emt 0:03:08]} c5 {[%emt 0:00:39]} 11. d5 {[%emt 0:01:24]} Rb8 {[%emt 0:01:41]} 12. Rb1 {[%emt 0:01:59]} Ba6 {[%emt 0:04:54]} 13. Qa4 {[%emt 0:03:47]} Qc8 {[%emt 0:00:34]} 14. Bh3 {[%emt 0:02:18]} Rb4 {[%emt 0:02:20]} 15. Qc2 {[%emt 0:03:58]} Qc7 {[%emt 0:21:45]} 16. Bc3 {[%emt 0:04:53]} Rxb1 {[%emt 0:01:30]} 17. Rxb1 {[%emt 0:03:21]} Rb8 {[%emt 0:00:07]} 18. Rxb8+ {[%emt 0:10:16]} Qxb8 {[%emt 0:00:15]} 19. Qb3 {[%emt 0:00:34]} Qb6 {[%emt 0:02:57]} 20. Ne1 {[%emt 0:11:09]} Bh6 {[%emt 0:04:00]} 21. e3 {[%emt 0:01:03]} g5 {[%emt 0:03:07]} 22. Bf5 {[%emt 0:04:22]} Ne5 {[%emt 0:05:39]} 23. Bxe5 {[%emt 0:05:50]} dxe5 {[%emt 0:00:35]} 24. Nd3 {[%emt 0:05:01]} Qd6 {[%emt 0:08:17]} 25. Qa3 {[%emt 0:05:09]} e6 {[%emt 0:04:07]} 26. Qxc5 {[%emt 0:04:35]} Qxc5 {[%emt 0:05:49]} 27. Nxc5 {[%emt 0:00:16]} exf5 {[%emt 0:05:58]} 28. Nxa6 {[%emt 0:00:42]} Bf8 {[%emt 0:00:06]} 29. Nb3 {[%emt 0:02:44]} Kg7 {[%emt 0:03:04]} 30. Kf1 {[%emt 0:03:40]} g4 {[%emt 0:00:52]} 31. Ke2 {[%emt 0:02:22]} Ne4 {[%emt 0:00:13]} 32. Ke1 {[%emt 0:03:16]} Nc3 {[%emt 0:04:46]} 33. Na5 {[%emt 0:01:31]} Nxa2 {[%emt 0:02:37]} 34. c5 {[%emt 0:03:03]} Nc3 {[%emt 0:01:43]} 35. d6 {[%emt 0:00:27]} Kf6 {[%emt 0:00:28]} 36. d7 {[%emt 0:00:47]} Ke7 {[%emt 0:04:47]} 37. Nb8 {[%emt 0:00:21]} 1-0

[Event "EYTCC U12 Open 2019"]
[Site "Pardubice"]
[Date "2019.07.14"]
[Round "4.4"]
[White "Klimkowski, Jan"]
[Black "Giang, Tran Nam"]
[Result "1-0"]
[ECO "B40"]
[WhiteElo "1985"]
[BlackElo "1931"]
[Annotator "NA"]
[PlyCount "87"]
[EventDate "2019.07.11"]
[EventType "swiss"]
[EventCountry "CZE"]
[SourceTitle "playchess.com"]
[Source "ChessBase"]
[SourceQuality "1"]
[WhiteTeam "Poland"]
[BlackTeam "Hungary"]
[WhiteTeamCountry "POL"]
[BlackTeamCountry "HUN"]
[TimeControl "40/5400+30:1800+30"]

1. e4 {[%emt 0:00:00]} c5 {[%emt 0:00:00]} 2. Nf3 {[%emt 0:00:00]} e6 {[%emt 0:00:00]} 3. d4 {[%emt 0:00:00]} cxd4 {[%emt 0:00:00]} 4. Nxd4 {[%emt 0:00:00]} Qb6 {[%emt 0:00:00]} 5. Nb3 {[%emt 0:00:00]} Qc7 {[%emt 0:00:00]} 6. Bd3 {[%emt 0:00:12]} a6 {[%emt 0:01:01]} 7. O-O {[%emt 0:00:13]} Nf6 {[%emt 0:00:44]} 8. f4 {[%emt 0:00:39]} d6 {[%emt 0:00:12]} 9. c4 {[%emt 0:00:39]} Nbd7 {[%emt 0:03:43]} 10. Nc3 {[%emt 0:01:39]} Be7 {[%emt 0:01:37]} 11. Qf3 {[%emt 0:01:50]} O-O {[%emt 0:03:36]} 12. Bd2 {[%emt 0:01:20]} b6 {[%emt 0:04:35]} 13. Rae1 {[%emt 0:03:28]} Bb7 14. Qh3 {[%emt 0:01:54]} Rfe8 {[%emt 0:09:20]} 15. g4 {[%emt 0:07:43]} g6 {[%emt 0:05:09]} 16. Qg3 {[%emt 0:10:44]} Rad8 {[%emt 0:14:29]} 17. Be3 {[%emt 0:08:43]} d5 {[%emt 0:13:16]} 18. cxd5 {[%emt 0:06:20]} exd5 {[%emt 0:00:29]} 19. e5 {[%emt 0:02:08]} Ne4 {[%emt 0:00:15]} 20. Nxe4 {[%emt 0:03:12]} dxe4 {[%emt 0:00:27]} 21. Rc1 {[%emt 0:01:39]} Qb8 {[%emt 0:09:13]} 22. Be2 {[%emt 0:02:57]} Rc8 {[%emt 0:04:04]} 23. Nd4 {[%emt 0:05:36]} Bc5 {[%emt 0:07:15]} 24. Bc4 {[%emt 0:04:47]} b5 {[%emt 0:03:52]} 25. e6 {[%emt 0:02:24]} fxe6 {[%emt 0:04:45]} 26. Bxe6+ {[%emt 0:00:44]} Rxe6 {[%emt 0:00:30]} 27. Nxe6 {[%emt 0:00:25]} Bxe3+ {[%emt 0:00:34]} 28. Qxe3 {[%emt 0:00:09]} Rxc1 {[%emt 0:00:55]} 29. Rxc1 {[%emt 0:01:40]} Qd6 {[%emt 0:00:30]} 30. Nd4 {[%emt 0:05:30]} Nf6 {[%emt 0:01:18]} 31. h3 {[%emt 0:07:55]} Qe7 {[%emt 0:02:08]} 32. Re1 {[%emt 0:02:22]} Qb4 {[%emt 0:02:25]} 33. g5 {[%emt 0:03:12]} Nh5 {[%emt 0:00:49]} 34. Rf1 {[%emt 0:05:14]} Qxb2 {[%emt 0:02:31]} 35. Rf2 {[%emt 0:00:26]} Qb1+ {[%emt 0:01:26]} 36. Kh2 {[%emt 0:00:24]} Qb4 {[%emt 0:01:05]} 37. Ne6 {[%emt 0:01:44]} a5 {[%emt 0:03:16]} 38. Rd2 {[%emt 0:01:17]} Qe7 {[%emt 0:00:30]} 39. Qb6 {[%emt 0:02:01]} e3 {[%emt 0:01:55]} 40. Rd8+ {[%emt 0:00:31]} Kf7 {[%emt 0:00:09]} 41. Rf8+ {[%emt 0:30:32]} Qxf8 {[%emt 0:30:39]} 42. Nxf8 {[%emt 0:00:06]} e2 {[%emt 0:00:18]} 43. Qxb7+ {[%emt 0:00:05]} Kxf8 {[%emt 0:00:07]} 44. Qe4 {[%emt 0:00:10]} 1-0

[Event "EYTCC U12 Open 2019"]
[Site "Pardubice"]
[Date "2019.07.14"]
[Round "4.5"]
[White "Maurizzi, Marc Andria"]
[Black "Cohen, Elad"]
[Result "1-0"]
[ECO "A45"]
[WhiteElo "2412"]
[BlackElo "2002"]
[Annotator "NA"]
[PlyCount "89"]
[EventDate "2019.07.11"]
[EventType "swiss"]
[EventCountry "CZE"]
[SourceTitle "playchess.com"]
[Source "ChessBase"]
[SourceQuality "1"]
[WhiteTeam "France"]
[BlackTeam "Israel"]
[WhiteTeamCountry "FRA"]
[BlackTeamCountry "ISR"]
[TimeControl "40/5400+30:1800+30"]

1. d4 {[%emt 0:00:00]} Nf6 {[%emt 0:00:00]} 2. Bg5 {[%emt 0:00:00]} d5 {[%emt 0:01:18]} 3. Bxf6 {[%emt 0:00:08]} exf6 {[%emt 0:00:22]} 4. e3 {[%emt 0:00:09]} Bd6 {[%emt 0:01:00]} 5. Bd3 {[%emt 0:00:23]} O-O {[%emt 0:02:01]} 6. Qf3 {[%emt 0:01:25]} c6 {[%emt 0:04:57]} 7. Nd2 {[%emt 0:03:51]} Nd7 {[%emt 0:06:01]} 8. Ne2 {[%emt 0:10:28]} Nb6 {[%emt 0:06:39]} 9. O-O {[%emt 0:33:19]} Re8 {[%emt 0:15:19]} 10. b3 {[%emt 0:10:49]} g6 {[%emt 0:10:25]} 11. c4 {[%emt 0:10:02]} Bf8 {[%emt 0:02:08]} 12. Nc3 {[%emt 0:08:00]} f5 {[%emt 0:07:23]} 13. Rac1 {[%emt 0:03:47]} Be6 {[%emt 0:05:19]} 14. Rfd1 {[%emt 0:01:31]} Qg5 {[%emt 0:04:54]} 15. g3 {[%emt 0:01:51]} Rad8 {[%emt 0:06:03]} 16. Bf1 {[%emt 0:01:50]} h5 {[%emt 0:02:02]} 17. h4 {[%emt 0:00:20]} Qe7 {[%emt 0:01:03]} 18. Ne2 {[%emt 0:04:13]} Nd7 {[%emt 0:03:25]} 19. Nf4 {[%emt 0:00:06]} Nf6 {[%emt 0:00:36]} 20. c5 {[%emt 0:02:26]} Bh6 {[%emt 0:03:30]} 21. b4 {[%emt 0:01:04]} Qc7 {[%emt 0:02:13]} 22. b5 {[%emt 0:01:04]} Qa5 {[%emt 0:02:47]} 23. bxc6 bxc6 {[%emt 0:00:06]} 24. Rc2 {[%emt 0:02:51]} Rb8 {[%emt 0:00:52]} 25. Nb3 {[%emt 0:00:07]} Qc7 {[%emt 0:00:54]} 26. Rb1 {[%emt 0:00:50]} a5 {[%emt 0:01:33]} 27. Qd1 {[%emt 0:01:13]} Bxf4 {[%emt 0:04:08]} 28. exf4 {[%emt 0:00:06]} Qa7 {[%emt 0:01:23]} 29. Nd2 {[%emt 0:00:27]} Ne4 {[%emt 0:03:19]} 30. Nf3 {[%emt 0:00:40]} Rb4 {[%emt 0:01:19]} 31. a3 {[%emt 0:00:48]} Rbb8 {[%emt 0:01:40]} 32. Ne5 {[%emt 0:00:43]} Qc7 {[%emt 0:00:39]} 33. f3 {[%emt 0:00:39]} Nf6 {[%emt 0:00:18]} 34. Rcb2 {[%emt 0:00:04]} Nd7 {[%emt 0:00:43]} 35. Nxd7 {[%emt 0:01:20]} Bxd7 {[%emt 0:00:02]} 36. Rb6 {[%emt 0:00:09]} Rxb6 {[%emt 0:00:27]} 37. cxb6 {[%emt 0:00:06]} Qb7 {[%emt 0:00:54]} 38. Qd2 {[%emt 0:00:13]} Ra8 {[%emt 0:00:39]} 39. Qc3 {[%emt 0:00:15]} Kg7 {[%emt 0:00:33]} 40. Qc5 {[%emt 0:00:07]} Rb8 {[%emt 0:00:32]} 41. Qxa5 {[%emt 0:30:54]} Ra8 {[%emt 0:30:21]} 42. Qc5 {[%emt 0:00:22]} Bc8 {[%emt 0:00:00]} 43. Re1 {[%emt 0:00:00]} Rb8 {[%emt 0:00:00]} 44. Re8 {[%emt 0:00:00]} Be6 {[%emt 0:00:00]} 45. Qf8+ {[%emt 0:00:00]} 1-0